bitfinex/quotes_ETHUSD_20250213
["timestamp","ask_amount","ask_price","bid_price","bid_amount"]
[1739455088249,2.31323244,2665.5,2665.4,3.0]
[1739455088870,2.31323244,2665.5,2665.4,6.75178]
[1739455089396,2.31323244,2665.5,2665.4,3.0]
[1739455089606,3.13883244,2665.5,2664.9,3.75241]
[1739455089896,3.75179,2665.4,2664.9,3.75241]
[1739455090108,7.50368,2665.4,2664.9,3.75241]
[1739455090250,3.13883244,2665.5,2664.8,3.0]
[1739455090251,3.75206,2665.2,2664.8,3.0]
[1739455090444,3.75223,2665.1,2664.8,3.0]
[1739455090781,3.75206,2665.2,2664.7,3.75269]
[1739455090949,3.75186,2665.4,2664.8,3.0]
[1739455091154,3.75211,2665.2,2664.8,3.0]
[1739455091571,3.75201,2665.3,2664.8,6.75259]
[1739455091777,3.75206,2665.2,2664.8,3.0]
[1739455091975,6.89056244,2665.5,2664.4,7.57104]
[1739455092186,6.89056244,2665.5,2665.0,3.75233]
[1739455092455,3.75186,2665.4,2664.9,3.75247]
[1739455092892,3.75199,2665.3,2664.7,3.75262]
[1739455093094,3.75208,2665.2,2664.7,3.75262]
[1739455093306,0.767,2665.1,2664.7,3.75262]
[1739455094089,3.75241,2665.0,2664.5,4.5846182]
[1739455094406,3.75286,2664.7,2664.1,4.56989]
[1739455094608,3.75286,2664.7,2664.1,3.75359]
[1739455094791,3.75254,2664.9,2663.9,3.75377]
[1739455095106,3.7532,2664.4,2663.9,3.75377]
[1739455095403,3.62769029,2664.7,2664.0,3.75363]
[1739455095404,3.75306,2664.5,2664.0,3.75363]
[1739455095915,3.75305,2664.5,2664.0,3.75371]
[1739455096121,3.75305,2664.5,2663.9,3.75384]
[1739455096262,3.75305,2664.5,2663.9,3.75378]
[1739455096462,3.75305,2664.5,2664.0,3.75372]
[1739455097126,3.75305,2664.5,2663.9,3.75378]
[1739455097127,0.815,2664.4,2663.9,3.75378]
[1739455098000,0.815,2664.4,2664.0,3.75365]
[1739455098313,0.815,2664.4,2664.1,3.75354]
[1739455098811,0.815,2664.4,2664.0,3.75365]
[1739455099664,0.815,2664.4,2664.0,7.5073]
[1739455099868,0.815,2664.4,2664.0,7.50733]
[1739455100093,0.815,2664.4,2664.0,3.75365]
[1739455100782,0.815,2664.4,2664.0,7.50729]
[1739455101009,0.815,2664.4,2664.0,3.75364]
[1739455101213,0.815,2664.4,2664.1,3.75361]
[1739455101420,0.815,2664.4,2664.0,3.75364]
[1739455101572,0.815,2664.4,2664.2,3.75344]
[1739455101774,0.815,2664.4,2664.1,3.75359]
[1739455102401,0.815,2664.4,2664.1,3.75347]
[1739455102712,0.815,2664.4,2664.1,3.75359]
[1739455103334,0.815,2664.4,2663.9,3.75382]
[1739455103650,0.815,2664.4,2664.2,3.75341]
[1739455103782,0.8045,2664.7,2664.1,0.7545]
[1739455103983,3.75268,2664.8,2664.3,3.75326]
[1739455104232,3.75257,2664.9,2664.4,3.75316]
[1739455104578,4.52774,2665.0,2664.5,3.75294]
[1739455104985,4.52772,2665.0,2664.4,3.75317]
[1739455105188,3.75279,2664.7,2664.2,6.75338]
[1739455105433,3.75293,2664.6,2664.2,3.0]
[1739455105621,0.8162,2664.5,2664.0,3.75361]
[1739455105934,3.75326,2664.4,2663.9,4.804645]
[1739455106136,3.7534,2664.3,2663.8,3.75402]
[1739455106460,4.56988,2664.1,2663.6,3.75427]
[1739455106993,4.56988,2664.1,2663.7,3.0]
[1739455107130,0.8162,2664.1,2663.3,3.75463]
[1739455107330,4.53803,2663.7,2663.2,3.75476]
[1739455107538,0.7838,2663.7,2663.2,3.75476]
[1739455107731,0.7838,2663.7,2662.9,3.7616]
[1739455107732,3.75439,2663.6,2663.0,3.75503]
[1739455107966,3.75451,2663.5,2663.0,3.75503]
[1739455108174,4.53802,2663.7,2663.1,3.755]
[1739455108490,3.75459,2663.5,2662.9,6.75521]
[1739455108635,0.7859,2663.1,2662.5,0.7956]
[1739455108988,0.7859,2663.1,2662.8,3.75541]
[1739455109285,0.7859,2663.1,2662.8,7.51075]
[1739455109593,0.7859,2663.1,2662.8,3.75534]
[1739455110381,0.7859,2663.1,2662.6,3.75566]
[1739455110561,0.7859,2663.1,2662.7,3.75557]
[1739455111283,0.7859,2663.1,2662.6,3.75566]
[1739455111466,0.7859,2663.1,2662.6,3.75562]
[1739455112465,0.7859,2663.1,2662.7,3.75557]
[1739455112689,0.7859,2663.1,2662.8,3.75542]
[1739455113074,0.7859,2663.1,2662.6,7.51125]
[1739455113685,0.7859,2663.1,2662.8,3.75531]
[1739455115493,0.7663,2663.5,2663.3,3.75472]
[1739455115689,0.7663,2663.5,2662.8,0.751094]
[1739455115877,4.52089,2663.5,2662.9,3.75516]
[1739455116397,0.7663,2663.5,2662.8,0.751094]
[1739455116710,0.7907,2663.9,2663.5,3.75444]
[1739455116865,0.7907,2663.9,2663.6,3.75428]
[1739455117206,4.5446,2663.9,2663.5,3.75444]
[1739455117359,0.7907,2663.9,2663.5,3.75444]
[1739455117566,4.54459,2663.9,2663.5,3.75444]
[1739455118145,0.8076,2664.2,2663.5,1.553912]
[1739455118267,3.75371,2664.1,2663.6,3.75419]
[1739455118461,0.8076,2664.2,2663.6,3.75419]
[1739455118692,3.75384,2664.0,2663.4,3.75449]
[1739455118903,3.75384,2664.0,2663.5,3.75435]
[1739455119060,3.75416,2663.8,2663.3,3.0]
[1739455119255,3.75392,2663.9,2663.3,3.0]
[1739455119455,3.75367,2664.1,2663.5,3.75436]
[1739455119895,3.75367,2664.1,2663.6,3.75431]
[1739455120368,3.75376,2664.0,2663.6,3.75431]
[1739455120876,3.75367,2664.1,2663.6,3.75431]
[1739455121206,0.8076,2664.2,2663.8,3.75396]
[1739455122072,4.56117,2664.2,2663.6,3.75423]
[1739455122282,0.8076,2664.2,2663.7,3.75409]
[1739455122486,0.8076,2664.2,2663.8,3.75396]
[1739455122686,0.8076,2664.2,2663.9,3.75388]
[1739455123301,0.8076,2664.2,2663.9,3.75381]
[1739455123517,0.8076,2664.2,2664.0,3.75375]
[1739455123718,0.8076,2664.2,2663.9,3.75381]
[1739455124088,0.8076,2664.2,2664.0,3.75375]
[1739455124498,0.8076,2664.2,2663.9,3.75381]
[1739455125769,0.8076,2664.2,2663.8,3.75401]
[1739455125922,0.8076,2664.2,2663.8,3.75391]
[1739455126127,0.8076,2664.2,2663.9,3.75381]
[1739455126321,0.7788,2664.5,2663.9,0.750772]
[1739455126522,3.7532,2664.4,2664.0,3.75364]
[1739455126713,4.53196,2664.5,2664.1,3.75361]
[1739455126927,0.7788,2664.5,2663.9,3.75384]
[1739455127158,0.8276,2664.8,2664.4,3.75319]
[1739455127463,4.57988,2665.1,2664.6,3.75287]
[1739455127776,4.57982,2665.1,2664.6,3.75287]
[1739455127909,3.75235,2665.0,2664.6,3.75284]
[1739455128113,4.57981,2665.1,2664.6,3.75283]
[1739455128350,4.57981,2665.1,2664.2,7.55455]
[1739455128522,0.8276,2665.1,2664.7,3.75275]
[1739455128724,0.8276,2665.1,2664.7,7.50544]
[1739455128924,0.8276,2665.1,2664.7,3.75269]
[1739455129122,4.57987,2665.1,2664.6,3.75288]
[1739455129343,3.75235,2665.0,2664.6,3.75288]
[1739455129654,3.7525,2664.9,2664.4,3.75312]
[1739455130063,3.7525,2664.9,2664.3,3.75324]
[1739455130269,3.7525,2664.9,2664.4,3.75305]
[1739455130561,4.57983,2665.1,2664.6,3.75283]
[1739455130867,3.75238,2665.0,2664.5,3.75303]
[1739455131378,4.57983,2665.1,2664.7,3.7527]
[1739455131533,4.57983,2665.1,2664.2,3.8011]
[1739455131534,3.7524,2665.0,2664.5,3.75291]
[1739455131713,3.75257,2664.9,2664.4,3.75311]
[1739455131914,3.75257,2664.9,2664.5,3.75302]
[1739455132145,3.75257,2664.9,2664.4,3.75311]
[1739455132346,3.75257,2664.9,2664.5,3.75298]
[1739455132663,3.75234,2665.0,2664.5,3.75298]
[1739455133033,4.57982,2665.1,2664.4,3.0]
[1739455133034,0.8276,2665.1,2664.4,3.0]
[1739455133217,0.8005,2665.3,2664.9,3.75241]
[1739455134162,4.55242,2665.3,2664.7,4.54687]
[1739455134348,4.55242,2665.3,2664.8,3.7526]
[1739455134734,4.55242,2665.3,2664.7,4.54687]
[1739455134934,4.55242,2665.3,2664.9,3.75246]
[1739455135560,0.8005,2665.3,2664.9,3.75246]
[1739455135735,4.55247,2665.3,2664.9,3.7524]
[1739455136269,4.55245,2665.3,2664.9,3.7524]
[1739455136472,4.55251,2665.3,2664.8,3.75256]
[1739455137475,3.75207,2665.2,2664.8,3.75256]
[1739455137867,3.75207,2665.2,2664.7,4.54694]
[1739455138781,3.75232,2665.1,2664.4,3.0]
[1739455138942,0.8164,2665.0,2664.1,0.8051]
[1739455139275,3.7528,2664.7,2664.2,3.75337]
[1739455139471,3.7528,2664.7,2664.2,7.50677]
[1739455139818,0.8164,2665.0,2663.8,3.75398]
[1739455139819,4.54361,2664.3,2663.8,3.75398]
[1739455140024,3.75351,2664.2,2663.6,0.7776]
[1739455140268,0.7902,2664.3,2663.7,3.75406]
[1739455140269,4.54361,2664.3,2663.7,3.75406]
[1739455140484,3.75348,2664.2,2663.7,3.75406]
[1739455140810,0.7902,2664.3,2663.8,3.7539]
[1739455140963,3.75349,2664.2,2663.6,3.75421]
[1739455141126,3.75384,2664.0,2663.4,3.75451]
[1739455141327,0.7759,2663.9,2663.4,3.75451]
[1739455141874,0.7759,2663.9,2663.5,3.75437]
[1739455142431,0.7759,2663.9,2663.6,3.75424]
[1739455142633,0.7759,2664.2,2663.7,3.75406]
[1739455142864,0.7759,2664.2,2663.9,3.75388]
[1739455143175,0.7759,2664.2,2664.0,3.75365]
[1739455143473,0.7759,2664.2,2663.7,7.50817]
[1739455143629,0.7759,2664.2,2663.7,3.75408]
[1739455143829,0.7759,2664.2,2663.7,4.86771903]
[1739455144077,0.7759,2664.2,2664.0,3.75374]
[1739455144221,0.7613,2664.5,2664.0,3.75374]
[1739455144423,0.8247,2664.9,2663.8,7.42029029]
[1739455144646,0.8247,2664.9,2664.5,7.50598]
[1739455144853,0.8247,2664.9,2664.5,3.75296]
[1739455145166,0.8247,2664.9,2664.8,3.75262]
[1739455145354,3.93708135,2665.4,2664.5,0.453906]
[1739455145355,0.8183,2665.2,2664.5,0.453906]
[1739455145774,0.8183,2665.2,2664.6,3.7529]
[1739455145775,3.75222,2665.1,2664.6,3.7529]
[1739455146512,4.57045,2665.2,2664.6,3.7529]
[1739455146867,4.57045,2665.2,2664.7,3.75276]
[1739455147395,3.75221,2665.1,2664.6,3.75283]
[1739455147695,0.8183,2665.2,2664.7,3.75273]
[1739455147996,4.57037,2665.2,2664.7,3.75273]
[1739455148513,3.7522,2665.1,2664.6,3.75283]
[1739455148866,4.57037,2665.2,2664.6,3.75282]
[1739455149066,0.8183,2665.2,2664.7,3.75276]
[1739455149290,0.8183,2665.2,2664.7,0.4206726]
[1739455149503,3.75177,2665.5,2664.9,3.75237]
[1739455149864,3.75177,2665.5,2664.9,3.75241]
[1739455149865,3.75178,2665.4,2664.9,3.75241]
[1739455150163,3.75179,2665.4,2664.9,3.75241]
[1739455150410,3.75178,2665.4,2664.8,4.56902]
[1739455150572,3.752,2665.3,2664.8,0.8164]
[1739455150763,4.50364,2665.2,2664.7,3.75266]
[1739455150959,4.50364,2665.2,2664.5,0.7639]
[1739455151164,3.75237,2665.0,2664.6,3.7529]
[1739455151423,3.75249,2664.9,2664.5,3.75298]
[1739455151605,3.75249,2664.9,2664.4,6.75311]
[1739455151770,3.75237,2665.0,2664.3,4.51722]
[1739455151771,3.75237,2665.0,2664.3,4.51712]
[1739455151966,3.75257,2664.9,2664.4,3.75317]
[1739455152185,3.75257,2664.9,2664.3,4.51712]
[1739455152519,0.8124,2664.7,2664.2,3.75345]
[1739455152720,0.8124,2664.7,2664.0,0.7808]
[1739455152871,0.8124,2664.7,2664.0,0.81833221]
[1739455153075,0.8124,2664.7,2664.3,3.75325]
[1739455153271,3.75292,2664.6,2664.1,3.75352]
[1739455153521,3.75314,2664.5,2664.0,3.75365]
[1739455153725,3.75292,2664.6,2664.0,3.75365]
[1739455153873,3.75292,2664.6,2664.2,3.75342]
[1739455154080,0.8124,2664.7,2664.2,3.75342]
[1739455154291,0.8124,2664.7,2664.1,3.7535]
[1739455154494,3.753,2664.6,2664.1,3.7535]
[1739455154793,3.75305,2664.5,2664.0,3.75374]
[1739455154993,3.75333,2664.3,2663.8,3.75396]
[1739455155174,0.7727,2664.4,2664.0,3.75368]
[1739455155675,4.52591,2664.4,2664.0,3.75368]
[1739455156133,4.52591,2664.4,2663.9,3.75388]
[1739455156430,4.52591,2664.4,2663.8,3.75396]
[1739455156637,4.52591,2664.4,2663.9,3.75382]
[1739455156935,0.7727,2664.4,2664.0,3.75375]
[1739455157287,0.7727,2664.4,2664.2,3.75337]
[1739455157487,0.7727,2664.4,2664.1,3.75361]
[1739455157937,0.7727,2664.4,2664.0,4.129015]
[1739455158237,0.7727,2664.4,2664.1,3.75355]
[1739455158639,4.52594,2664.4,2664.0,0.375375]
[1739455158823,0.7727,2664.4,2663.6,6.75421]
[1739455159010,3.75342,2664.3,2663.7,6.75406]
[1739455159395,4.52591,2664.4,2663.9,3.75388]
[1739455159794,4.52591,2664.4,2664.0,3.75372]
[1739455160155,8.27919,2664.4,2663.9,3.75388]
[1739455160322,4.52591,2664.4,2663.8,3.75401]
[1739455160524,3.75336,2664.3,2663.8,3.75401]
[1739455160860,4.52591,2664.4,2663.8,3.75401]
[1739455160861,4.52591,2664.4,2663.9,3.75386]
[1739455161211,4.52591,2664.4,2664.0,3.75375]
[1739455161408,3.75354,2664.2,2663.4,3.0]
[1739455161615,3.75376,2664.0,2663.5,3.7544]
[1739455162024,3.75397,2663.9,2663.4,3.75459]
[1739455162543,3.75376,2664.0,2663.5,3.75441]
[1739455162861,3.75376,2664.0,2663.5,3.75437]
[1739455163061,3.75376,2664.0,2663.4,3.0]
[1739455163365,3.75403,2663.8,2663.4,3.75456]
[1739455163839,3.75376,2664.0,2663.5,3.75437]
[1739455164041,7.50762,2664.0,2663.5,3.75437]
[1739455164246,3.75376,2664.0,2663.5,3.75437]
[1739455164571,0.8136,2664.1,2663.5,4.5053]
[1739455164767,0.8136,2664.1,2663.8,3.75394]
[1739455164912,0.8136,2664.1,2663.3,3.75467]
[1739455165260,0.8136,2664.1,2663.8,3.75401]
[1739455165569,0.8136,2664.1,2663.7,3.75417]
[1739455165865,3.75388,2664.0,2663.5,7.50875]
[1739455166026,3.75382,2664.0,2663.5,4.587575]
[1739455166234,0.8136,2664.1,2663.7,3.75414]
[1739455166453,4.56722,2664.1,2663.7,3.75414]
[1739455166761,3.75376,2664.0,2663.5,3.75435]
[1739455167065,3.75376,2664.0,2663.6,3.75431]
[1739455167263,3.75376,2664.0,2663.5,3.75435]
[1739455167703,0.8136,2664.1,2663.3,3.75466]
[1739455167837,4.57752,2663.7,2663.3,3.75466]
[1739455168186,0.8233,2663.7,2663.4,3.75449]
[1739455168384,0.8233,2664.1,2663.5,3.75438]
[1739455168534,3.75382,2664.0,2663.5,3.75434]
[1739455168735,4.57691,2664.1,2663.6,3.75431]
[1739455169240,3.75401,2663.9,2663.4,3.75459]
[1739455169540,0.8233,2664.1,2663.1,3.7549]
[1739455169541,0.7582,2663.7,2663.1,3.7549]
[1739455169735,3.75445,2663.6,2663.0,3.75513]
[1739455169929,0.7582,2663.7,2662.9,3.75524]
[1739455170183,3.75431,2663.6,2663.1,3.75498]
[1739455170381,0.7582,2663.7,2663.2,3.75477]
[1739455170563,4.51243,2663.7,2663.2,3.75477]
[1739455170884,8.2667,2663.7,2663.2,3.75477]
[1739455171238,3.75433,2663.6,2663.2,3.75477]
[1739455171474,4.51243,2663.7,2663.2,3.75477]
[1739455171687,3.75438,2663.6,2663.1,3.755]
[1739455172568,4.51243,2663.7,2662.9,3.0]
[1739455172888,0.7582,2663.7,2663.3,3.75467]
[1739455173191,0.7582,2663.7,2663.4,3.75453]
[1739455173687,0.7582,2663.7,2663.5,3.75439]
[1739455173892,0.8002,2664.0,2663.6,3.75431]
[1739455174051,4.55397,2664.0,2663.4,3.75447]
[1739455174400,4.55397,2664.0,2663.6,0.434535]
[1739455174545,3.75389,2663.9,2663.6,0.434535]
[1739455175642,4.55402,2664.0,2663.6,0.434535]
[1739455176203,3.75389,2663.9,2663.6,0.434535]
[1739455176989,0.8002,2664.0,2663.6,0.434535]
[1739455177139,3.75395,2663.9,2663.6,0.434535]
[1739455177983,4.55404,2664.0,2663.6,0.434535]
[1739455178170,3.75391,2663.9,2663.6,0.434535]
[1739455178681,3.75406,2663.8,2663.6,0.434535]
[1739455179244,3.75401,2663.9,2663.6,0.434535]
[1739455179440,3.75404,2663.8,2663.6,0.434535]
[1739455180059,5.28,2663.7,2663.6,0.434535]
[1739455180268,9.03417,2663.7,2663.6,0.434535]
[1739455181088,5.28,2663.7,2663.6,0.434535]
[1739455181242,5.28,2663.7,2663.6,4.188845]
[1739455181440,5.28,2663.7,2663.6,4.6893795]
[1739455182079,5.28,2663.7,2663.6,0.9350695]
[1739455182454,5.28,2663.7,2663.6,0.434535]
[1739455182917,5.28,2663.7,2663.6,4.188845]
[1739455183098,5.28,2663.7,2663.6,0.434535]
[1739455183718,9.03417,2663.7,2663.6,0.434535]
[1739455185812,5.28,2663.7,2663.6,0.434535]
[1739455186225,9.03417,2663.7,2663.3,3.75472]
[1739455186985,12.78846,2663.7,2663.2,3.75486]
[1739455187178,9.03417,2663.7,2663.2,3.75486]
[1739455187493,3.75431,2663.6,2663.1,4.57791]
[1739455188237,3.75431,2663.6,2663.1,4.57784]
[1739455188431,3.75447,2663.5,2663.1,0.8229]
[1739455188665,3.75445,2663.5,2663.1,0.8229]
[1739455188847,3.75544,2662.9,2662.6,0.7863]
[1739455189134,3.75529,2663.0,2662.6,0.7863]
[1739455189340,4.50722,2663.1,2662.6,4.54196]
[1739455190238,3.75523,2663.0,2662.6,4.54196]
[1739455190395,0.7521,2663.1,2662.6,0.7863]
[1739455190599,3.75516,2663.0,2662.6,0.7863]
[1739455191132,0.7521,2663.1,2662.6,0.7863]
[1739455191334,3.75568,2662.7,2662.3,0.7729]
[1739455191498,0.8014,2662.6,2662.0,4.52935]
[1739455191700,3.75594,2662.5,2662.0,0.7729]
[1739455191882,3.75616,2662.3,2661.8,8.31606]
[1739455192083,3.75611,2662.4,2661.8,4.55932]
[1739455192633,3.75625,2662.3,2661.8,0.8026]
[1739455192785,3.75625,2662.3,2661.6,3.75704]
[1739455192786,0.7962,2662.1,2661.6,3.75704]
[1739455193779,4.55264,2662.1,2661.6,3.75704]
[1739455194115,3.75661,2662.0,2661.5,3.83]
[1739455194348,3.75661,2662.0,2661.2,3.62769029]
[1739455194349,3.75687,2661.8,2661.2,4.58179]
[1739455194554,7.51379,2661.8,2661.2,4.58179]
[1739455194849,3.75686,2661.8,2661.2,8.3394]
[1739455195189,3.75667,2662.0,2661.2,8.3394]
[1739455195190,3.75666,2662.0,2661.4,3.75738]
[1739455195436,3.75688,2661.8,2661.3,3.75747]
[1739455195938,3.75688,2661.8,2661.2,0.8241]
[1739455196237,3.75667,2662.0,2661.2,4.58171]
[1739455196403,3.75666,2662.0,2661.4,3.75732]
[1739455196586,0.7962,2662.1,2661.2,0.8241]
[1739455196787,4.55264,2662.1,2661.4,0.8024]
[1739455197004,4.55269,2662.1,2661.4,0.8024]
[1739455197218,3.75672,2661.9,2661.4,4.55974]
[1739455197893,0.7962,2662.1,2661.5,3.75716]
[1739455198093,3.75658,2662.0,2661.5,3.75716]
[1739455198305,3.75658,2662.0,2661.5,7.51435]
[1739455198534,0.7962,2662.1,2661.6,3.75706]
[1739455198743,3.7566,2662.0,2661.5,3.75716]
[1739455198940,0.7962,2662.1,2661.4,0.8024]
[1739455199098,4.52857,2662.3,2661.8,3.75685]
[1739455199292,3.75638,2662.2,2661.4,0.8024]
[1739455199488,4.52845,2662.3,2661.8,3.75678]
[1739455199689,3.7563,2662.2,2661.6,3.7571]
[1739455199924,0.7723,2662.3,2661.6,4.21305]
[1739455200135,0.7723,2662.3,2661.6,3.7571]
[1739455200442,4.5791,2661.9,2661.5,3.0]
[1739455200593,3.75694,2661.8,2661.2,3.7576]
[1739455200788,0.8223,2661.9,2661.4,3.0]
[1739455201038,3.7571,2661.7,2661.2,0.8082]
[1739455201242,3.75729,2661.5,2661.0,4.56617]
[1739455201738,3.75708,2661.7,2661.0,4.56617]
[1739455201739,4.5791,2661.9,2661.3,3.75756]
[1739455201951,3.75702,2661.7,2661.2,3.75767]
[1739455202094,0.7649,2661.5,2660.9,3.76895884]
[1739455202294,0.7649,2661.5,2660.9,0.76895884]
[1739455202589,3.75793,2661.1,2660.9,0.76895884]
[1739455202707,3.75778,2661.2,2660.9,0.76895884]
[1739455203161,3.75795,2661.1,2660.9,0.76895884]
[1739455203333,3.75752,2661.4,2660.9,0.76895884]
[1739455203646,3.75764,2661.3,2660.9,0.76895884]
[1739455203846,3.75742,2661.4,2660.9,4.52700884]
[1739455204075,3.75763,2661.3,2660.9,0.76895884]
[1739455204732,3.75767,2661.3,2660.9,0.76895884]
[1739455205048,3.75765,2661.3,2660.9,0.76895884]
[1739455205250,3.75777,2661.2,2660.9,0.76895884]
[1739455205450,3.75786,2661.1,2660.9,0.76895884]
[1739455206157,3.75779,2661.2,2660.9,0.76895884]
[1739455206306,3.75791,2661.1,2660.9,0.76895884]
[1739455207359,3.75779,2661.2,2660.9,0.76895884]
[1739455207520,4.133569,2661.2,2660.9,0.76895884]
[1739455207755,0.375779,2661.2,2660.9,4.52698884]
[1739455207958,3.75744,2661.4,2660.9,4.52699884]
[1739455208160,3.75744,2661.4,2661.0,3.75796]
[1739455208362,3.75756,2661.3,2660.9,0.76895884]
[1739455208571,3.75763,2661.3,2660.9,0.76895884]
[1739455208879,3.75742,2661.4,2660.9,4.52699884]
[1739455209048,3.75756,2661.3,2660.9,4.52699884]
[1739455209248,3.75742,2661.4,2660.9,4.52699884]
[1739455209650,0.7649,2661.5,2660.9,0.76895884]
[1739455209940,3.47272116,2660.7,2660.6,7.56625]
[1739455210769,3.47272116,2660.7,2660.6,8.30890526]
[1739455210951,5.28,2661.3,2661.2,3.7577]
[1739455211286,3.75729,2661.5,2661.1,3.75783]
[1739455211491,3.75748,2661.4,2660.9,7.51608]
[1739455211687,3.75729,2661.5,2661.0,3.75792]
[1739455211999,3.75742,2661.4,2661.0,3.75792]
[1739455212134,3.75729,2661.5,2661.0,3.75792]
[1739455212450,3.7575,2661.4,2660.8,3.75817]
[1739455212684,4.42269029,2661.5,2660.7,0.7826]
[1739455212890,0.7901,2660.5,2659.2,3.62769029]
[1739455213074,0.7901,2660.5,2658.6,3.95162942]
[1739455213075,3.62769029,2660.1,2659.3,0.8095]
[1739455213271,3.75983,2659.7,2659.3,0.8095]
[1739455213470,3.75975,2659.8,2659.3,0.8095]
[1739455213667,7.99995526,2660.4,2659.4,3.76024]
[1739455213879,7.99995526,2660.4,2660.3,3.75897]
[1739455214087,0.7901,2660.7,2660.3,3.75897]
[1739455214285,0.7901,2660.7,2659.8,0.7991]
[1739455214286,4.41779029,2660.7,2659.8,0.7991]
[1739455214486,4.5884,2660.2,2659.6,3.7991]
[1739455214735,3.75944,2660.0,2659.6,0.7991]
[1739455214928,3.75944,2660.0,2659.3,0.7631]
[1739455214929,3.75947,2660.0,2659.3,0.7631]
[1739455215142,3.75947,2660.0,2659.3,4.5234]
[1739455215322,3.7597,2659.8,2659.1,3.76066]
[1739455215643,0.8292,2660.2,2659.0,3.0]
[1739455215944,4.58837,2660.2,2659.1,3.76067]
[1739455216237,3.75975,2659.8,2659.2,3.76043]
[1739455216429,3.75996,2659.6,2658.6,3.62769029]
[1739455216613,3.76043,2659.3,2658.7,4.12394903]
[1739455216822,3.76043,2659.3,2658.7,0.36276903]
[1739455217027,3.76047,2659.3,2658.7,0.36276903]
[1739455217343,3.76047,2659.3,2658.7,3.36276903]
[1739455217521,8.729276,2659.6,2658.7,0.36276903]
[1739455217722,4.969226,2659.6,2658.9,3.76094]
[1739455217920,4.969226,2659.6,2659.1,3.76066]
[1739455218123,4.969226,2659.6,2658.9,3.76083]
[1739455218293,4.969226,2659.6,2659.0,3.0]
[1739455218294,4.59323,2659.6,2659.0,3.0]
[1739455218492,4.59323,2659.6,2658.9,3.8127]
[1739455218715,4.59323,2659.6,2658.9,4.57356]
[1739455218716,3.76013,2659.5,2658.9,4.57356]
[1739455219148,0.8332,2659.6,2658.9,4.57355]
[1739455219347,3.76035,2659.4,2658.9,0.8127]
[1739455219642,3.76043,2659.3,2658.9,0.8127]
[1739455219868,0.8332,2659.6,2658.9,0.8127]
[1739455219996,0.8332,2659.6,2659.1,3.76059]
[1739455220440,3.75998,2659.6,2659.1,0.757329]
[1739455220656,3.75998,2659.6,2659.0,6.76081]
[1739455220877,7.52006,2659.6,2659.0,6.76073]
[1739455221137,3.75998,2659.6,2658.9,3.8127]
[1739455221344,3.76032,2659.4,2658.9,0.8127]
[1739455221587,5.28,2659.3,2658.9,0.8127]
[1739455221897,3.76056,2659.2,2658.6,4.54918]
[1739455222076,3.76081,2659.0,2658.6,0.7879]
[1739455222275,5.28,2658.9,2658.6,0.7879]
[1739455222434,5.28,2658.9,2658.5,3.76142]
[1739455222635,5.28,2658.9,2658.7,3.76119]
[1739455223589,5.28,2658.9,2658.8,7.51359]
[1739455223794,5.28,2659.6,2659.0,0.7761]
[1739455224215,5.28,2659.6,2659.5,3.7601]
[1739455224357,5.28,2659.6,2659.4,3.76023]
[1739455224552,7.59472514,2659.7,2659.5,3.7601]
[1739455224787,7.59472514,2659.7,2659.4,4.512305]
[1739455225363,7.59472514,2659.7,2659.3,3.76028]
[1739455225748,7.59472514,2659.7,2659.3,3.7603]
[1739455226053,7.59472514,2659.7,2659.6,3.75996]
[1739455226405,7.59472514,2659.7,2659.6,7.56636]
[1739455226621,5.14e-06,2659.7,2659.6,7.57386]
[1739455226773,5.28,2660.3,2660.2,3.75911]
[1739455226956,5.28,2661.0,2660.3,0.8064]
[1739455227152,3.75828,2660.8,2660.3,0.8064]
[1739455227453,5.28,2660.8,2660.3,0.8064]
[1739455227740,9.03835,2660.8,2660.3,4.56534]
[1739455227887,9.03835,2660.8,2660.3,0.8064]
[1739455228095,9.03835,2660.8,2659.7,3.75976]
[1739455228096,3.75862,2660.6,2659.9,7.58481]
[1739455228295,3.75862,2660.6,2659.9,3.8253]
[1739455229560,3.75899,2660.3,2659.9,0.8253]
[1739455229760,0.7966,2660.2,2659.5,0.8253]
[1739455230004,3.75963,2659.9,2659.3,3.76037]
[1739455230217,3.75986,2659.7,2659.2,3.7931]
[1739455230388,3.76022,2659.5,2658.9,0.7931]
[1739455230712,3.76049,2659.3,2658.8,3.0]
[1739455230854,3.76068,2659.1,2658.8,3.0]
[1739455231314,3.76109,2658.8,2658.3,3.76171]
[1739455231459,0.7742,2658.9,2658.3,3.76169]
[1739455231820,0.7742,2658.9,2658.5,3.76142]
[1739455231963,3.76094,2659.0,2658.4,3.76164]
[1739455232327,3.76098,2658.9,2658.3,4.44112284]
[1739455232815,3.76091,2659.0,2658.4,3.76158]
[1739455232963,3.76077,2659.1,2658.5,3.76149]
[1739455233163,3.76112,2658.8,2658.3,4.44112284]
[1739455233357,3.76112,2658.8,2658.3,3.76168]
[1739455233800,3.76112,2658.8,2658.2,0.8185]
[1739455234128,3.76139,2658.6,2658.2,3.0]
[1739455234557,3.76112,2658.8,2658.2,3.0]
[1739455235270,3.76135,2658.7,2658.2,3.0]
[1739455235435,3.76102,2658.9,2658.2,3.0]
[1739455235731,3.76125,2658.7,2658.2,6.76194]
[1739455235941,3.76142,2658.6,2658.1,3.0]
[1739455236145,3.76142,2658.6,2657.9,3.76236]